bitfinex/quotes_BTCUSD_20241226
["timestamp","ask_amount","ask_price","bid_price","bid_amount"]
[1735232233723,0.00698376,96631.0,96630.0,0.000211]
[1735232233901,0.04209138,96631.0,96630.0,0.000211]
[1735232234111,0.05507677,96631.0,96630.0,0.001211]
[1735232234857,0.05807677,96631.0,96630.0,0.001211]
[1735232235171,0.05507677,96631.0,96630.0,0.001211]
[1735232235377,0.05807677,96631.0,96630.0,0.001211]
[1735232235989,0.05207677,96631.0,96630.0,0.000211]
[1735232236194,0.01598539,96631.0,96630.0,0.001211]
[1735232236443,0.01598539,96631.0,96630.0,0.276811]
[1735232236651,0.01598539,96631.0,96630.0,0.40279732]
[1735232236907,0.015,96631.0,96630.0,0.95009732]
[1735232237108,0.015,96631.0,96630.0,1.05408364]
[1735232237235,0.09298586,96655.0,96654.0,0.206923]
[1735232237453,0.09298586,96655.0,96654.0,0.282923]
[1735232237631,0.10000137,96655.0,96654.0,0.282923]
[1735232238063,0.10000137,96655.0,96654.0,0.076]
[1735232238267,0.10000137,96655.0,96647.0,0.5463]
[1735232238268,0.00701551,96655.0,96647.0,0.5463]
[1735232238471,0.00701551,96655.0,96654.0,0.001]
[1735232238472,0.007,96655.0,96654.0,0.001]
[1735232238676,0.11804854,96655.0,96654.0,0.001]
[1735232238928,0.206923,96654.0,96646.0,0.01074049]
[1735232239141,0.00706222,96655.0,96640.0,0.14453538]
[1735232239339,0.003,96655.0,96640.0,0.14453538]
[1735232239544,0.003,96655.0,96641.0,0.413902]
[1735232239742,0.00706222,96654.0,96641.0,0.413902]
[1735232239953,0.00706222,96654.0,96641.0,0.05584374]
[1735232240161,0.00706222,96654.0,96641.0,0.206951]
[1735232240733,0.003,96654.0,96641.0,0.206951]
[1735232241291,0.206921,96656.0,96640.0,0.02061505]
[1735232241704,0.002,96654.0,96641.0,0.206951]
[1735232242117,0.00706222,96655.0,96640.0,0.02061505]
[1735232242326,0.002,96654.0,96640.0,0.02061505]
[1735232242527,0.00706222,96654.0,96640.0,0.02061505]
[1735232242702,0.206903,96664.0,96640.0,0.02061505]
[1735232242905,0.00706222,96653.0,96640.0,0.02061505]
[1735232243109,0.10398632,96663.0,96640.0,0.02061505]
[1735232243336,0.10398632,96663.0,96640.0,0.07273456]
[1735232243639,0.206918,96657.0,96640.0,0.07273456]
[1735232243837,0.206918,96657.0,96640.0,0.02061505]
[1735232244035,0.002,96654.0,96640.0,0.02061505]
[1735232244459,0.206918,96657.0,96640.0,0.02061505]
[1735232244687,0.00711596,96653.0,96640.0,0.02061505]
[1735232244893,0.206918,96657.0,96640.0,0.02061505]
[1735232244894,0.206929,96652.0,96640.0,0.02061505]
[1735232245431,0.00711596,96651.0,96640.0,0.14453538]
[1735232245870,0.206932,96650.0,96640.0,0.14453538]
[1735232246070,0.00711596,96651.0,96640.0,0.12392033]
[1735232246071,0.206942,96646.0,96640.0,0.12392033]
[1735232246470,0.11110228,96645.0,96633.0,0.08665608]
[1735232246669,0.206958,96638.0,96633.0,0.08665608]
[1735232246871,0.11110228,96645.0,96633.0,0.076]
[1735232247120,0.206955,96640.0,96633.0,0.076]
[1735232247260,0.206963,96636.0,96631.0,0.01094235]
[1735232247462,0.206955,96640.0,96630.0,0.12413133]
[1735232247662,0.206963,96636.0,96630.0,0.12413133]
[1735232247862,0.00707051,96635.0,96630.0,0.12413133]
[1735232248292,0.00707051,96635.0,96633.0,0.001]
[1735232248558,0.206966,96634.0,96633.0,0.004]
[1735232248970,0.21403651,96634.0,96633.0,0.003]
[1735232249381,0.25613646,96634.0,96633.0,0.003]
[1735232249580,0.21403651,96634.0,96633.0,0.003]
[1735232249734,0.21403651,96634.0,96630.0,0.002211]
[1735232249735,0.00707051,96634.0,96630.0,0.002211]
[1735232250094,0.10398632,96645.0,96630.0,0.005211]
[1735232250235,0.00707051,96633.0,96630.0,0.12913133]
[1735232250449,0.206957,96639.0,96630.0,0.000211]
[1735232250653,0.00707051,96632.0,96630.0,0.000211]
[1735232250965,0.20696,96637.0,96633.0,0.002]
[1735232251466,0.20696,96637.0,96630.0,0.000211]
[1735232251671,8.56e-05,96635.0,96630.0,0.000211]
[1735232252647,8.56e-05,96635.0,96630.0,0.001211]
[1735232253161,0.05188349,96635.0,96630.0,0.001211]
[1735232253333,0.05188349,96635.0,96630.0,0.000211]
[1735232253549,0.206966,96634.0,96630.0,0.000211]
[1735232253757,0.413933,96634.0,96630.0,0.000211]
[1735232254794,0.415933,96634.0,96630.0,0.000211]
[1735232255221,0.413933,96634.0,96630.0,0.000211]
[1735232255611,0.415933,96634.0,96630.0,0.000211]
[1735232256371,0.208966,96634.0,96630.0,0.000211]
[1735232256995,0.206966,96634.0,96630.0,0.000211]
[1735232257198,0.209966,96634.0,96630.0,0.000211]
[1735232257795,8.56e-05,96635.0,96630.0,0.000211]
[1735232258022,0.002,96634.0,96631.0,0.0799]
[1735232258482,8.56e-05,96635.0,96631.0,0.0799]
[1735232258901,0.002,96634.0,96631.0,0.0799]
[1735232259412,0.00695646,96633.0,96631.0,0.0799]
[1735232259935,0.002,96634.0,96631.0,0.0799]
[1735232260139,0.00695646,96632.0,96631.0,0.0799]
[1735232260347,0.0030856,96635.0,96631.0,0.0799]
[1735232260572,0.00695646,96632.0,96631.0,0.0799]
[1735232260792,0.0030856,96635.0,96631.0,0.0799]
[1735232260992,0.02100396,96634.0,96631.0,0.0799]
[1735232261208,0.001,96632.0,96631.0,0.0799]
[1735232261610,8.56e-05,96635.0,96631.0,0.0799]
[1735232261815,0.00695387,96632.0,96631.0,0.0799]
[1735232262008,0.0010856,96635.0,96631.0,0.0799]
[1735232262211,0.00695387,96632.0,96631.0,0.09098576]
[1735232262417,0.0010856,96635.0,96631.0,0.09098576]
[1735232262961,0.00695387,96634.0,96631.0,0.09098576]
[1735232263473,0.001,96632.0,96631.0,0.09098576]
[1735232264053,8.56e-05,96635.0,96631.0,0.09098576]
[1735232264469,0.00695387,96634.0,96631.0,0.09098576]
[1735232264642,0.00607786,96634.0,96631.0,0.09098576]
[1735232264864,0.00707786,96634.0,96631.0,0.09098576]
[1735232266274,0.001,96634.0,96631.0,0.09098576]
[1735232266478,0.1880206,96649.0,96631.0,0.09098576]
[1735232266684,0.00680787,96648.0,96631.0,0.09098576]
[1735232266919,0.10398632,96652.0,96631.0,0.09098576]
[1735232267161,0.001,96634.0,96631.0,0.09098576]
[1735232267631,0.20694,96647.0,96631.0,0.09098576]
[1735232268091,0.00680787,96646.0,96631.0,0.09098576]
[1735232269571,0.00680787,96646.0,96631.0,0.09198576]
[1735232269771,0.00680787,96646.0,96631.0,0.09098576]
[1735232269996,0.00680787,96646.0,96631.0,0.09198576]
[1735232270703,0.00980787,96646.0,96631.0,0.09198576]
[1735232271128,0.206942,96645.0,96631.0,0.09198576]
[1735232271261,0.21376005,96645.0,96631.0,0.09098576]
[1735232271679,0.00681805,96645.0,96631.0,0.09098576]
[1735232272463,0.206945,96644.0,96631.0,0.09098576]
[1735232273067,0.0068149,96643.0,96631.0,0.09098576]
[1735232273247,0.206949,96642.0,96631.0,0.09098576]
[1735232273629,0.206967,96634.0,96631.0,0.09098576]
[1735232273974,0.10398632,96641.0,96631.0,0.09098576]
[1735232274132,0.0068149,96633.0,96631.0,0.09098576]
[1735232274327,0.206966,96635.0,96631.0,0.09098576]
[1735232274588,0.0068149,96632.0,96631.0,0.09098576]
[1735232274733,0.206955,96639.0,96631.0,0.09098576]
[1735232274933,0.0068149,96632.0,96631.0,0.09098576]
[1735232275139,0.206964,96635.0,96631.0,0.09098576]
[1735232275340,0.0068149,96632.0,96631.0,0.09098576]
[1735232275546,0.206964,96635.0,96631.0,0.09098576]
[1735232275928,0.0068149,96632.0,96631.0,0.09098576]
[1735232276096,0.001,96633.0,96631.0,0.09098576]
[1735232276527,0.206964,96635.0,96631.0,0.09098576]
[1735232276528,0.206964,96635.0,96631.0,0.09115696]
[1735232276726,0.0068149,96632.0,96631.0,0.09115696]
[1735232276929,0.207964,96635.0,96631.0,0.09115696]
[1735232277235,0.0068149,96632.0,96631.0,0.09115696]
[1735232277405,0.207966,96635.0,96631.0,0.09115696]
[1735232277627,0.0068149,96632.0,96631.0,0.09115696]
[1735232277825,0.206966,96635.0,96631.0,0.09115696]
[1735232278026,0.0068149,96632.0,96631.0,0.09115696]
[1735232278231,0.206966,96635.0,96631.0,0.09115696]
[1735232278414,0.0068149,96632.0,96631.0,0.09115696]
[1735232278612,0.206966,96635.0,96631.0,0.09115696]
[1735232278814,0.0068149,96632.0,96631.0,0.09115696]
[1735232279011,0.206966,96635.0,96631.0,0.09115696]
[1735232279214,0.0068149,96632.0,96631.0,0.0800712]
[1735232279414,0.001,96632.0,96631.0,0.0800712]
[1735232279675,0.0493081,96632.0,96631.0,0.0001712]
[1735232279883,0.0414932,96632.0,96631.0,0.0001712]
[1735232280052,0.0483081,96632.0,96631.0,0.0001712]
[1735232280425,0.0068149,96632.0,96631.0,0.0001712]
[1735232280875,0.413932,96635.0,96631.0,0.0001712]
[1735232281186,0.001,96632.0,96631.0,0.0001712]
[1735232281638,0.00667293,96632.0,96631.0,0.12510596]
[1735232281761,0.001,96632.0,96631.0,0.28301948]
[1735232282143,0.001,96632.0,96631.0,1.01216152]
[1735232282294,8.56e-05,96656.0,96651.0,0.48083]
[1735232282498,8.56e-05,96656.0,96651.0,0.58481632]
[1735232282709,1.469e-05,96656.0,96655.0,0.455821]
[1735232282883,8.56e-05,96680.0,96673.0,0.206882]
[1735232283930,8.56e-05,96680.0,96673.0,0.23917496]
[1735232284319,0.0010855,96674.0,96673.0,0.23917496]
[1735232284522,0.0010855,96674.0,96673.0,0.31507496]
[1735232285991,8.55e-05,96674.0,96673.0,0.31507496]
[1735232286173,0.0010855,96674.0,96673.0,0.36513408]
[1735232286625,0.0010855,96674.0,96673.0,0.33284112]
[1735232286797,8.55e-05,96674.0,96673.0,0.282782]
[1735232286953,0.0010855,96674.0,96673.0,0.282782]
[1735232288147,0.0010855,96674.0,96673.0,0.2934582]
[1735232289251,0.0010855,96674.0,96673.0,0.10739329]
[1735232290399,8.55e-05,96674.0,96673.0,0.10739329]
[1735232290600,0.0010855,96674.0,96673.0,0.10739329]
[1735232291246,8.55e-05,96674.0,96673.0,0.10739329]
[1735232291445,0.0010855,96674.0,96673.0,0.10739329]
[1735232292611,8.55e-05,96674.0,96673.0,0.10739329]
[1735232293038,0.0010855,96674.0,96673.0,0.10739329]
[1735232294594,0.0010855,96674.0,96673.0,0.0106762]
[1735232294792,0.00692709,96674.0,96663.0,0.0782]
[1735232294947,0.0010855,96674.0,96663.0,0.07824]
[1735232295560,0.00591861,96673.0,96663.0,0.08873103]
[1735232295741,0.0010855,96674.0,96663.0,0.08873103]
[1735232295742,8.55e-05,96674.0,96663.0,0.08873103]
[1735232295943,0.00591861,96672.0,96663.0,0.08873103]
[1735232296189,0.0010855,96674.0,96663.0,0.08873103]
[1735232296520,0.00591861,96671.0,96663.0,0.01053103]
[1735232296708,0.001,96673.0,96663.0,4e-05]
[1735232296921,0.206891,96669.0,96663.0,4e-05]
[1735232297330,0.00591861,96668.0,96663.0,4e-05]
[1735232297744,0.206895,96667.0,96663.0,4e-05]
[1735232297950,0.2069,96665.0,96663.0,4e-05]
[1735232298154,0.10398632,96664.0,96663.0,4e-05]
[1735232298600,0.10987482,96664.0,96663.0,4e-05]
[1735232298949,0.413808,96663.0,96654.0,0.19238707]
[1735232299155,0.10398632,96662.0,96654.0,0.19238707]
[1735232299351,0.206908,96661.0,96654.0,0.19238707]
[1735232299557,0.0058885,96661.0,96654.0,0.19238707]
[1735232299803,6.385e-05,96664.0,96654.0,0.19238707]
[1735232300135,0.0058885,96660.0,96654.0,0.19238707]
[1735232300350,0.10398632,96659.0,96654.0,0.19238707]
[1735232300545,0.206906,96662.0,96654.0,0.19238707]
[1735232300779,0.002,96661.0,96654.0,0.19238707]
[1735232301311,0.0058885,96660.0,96654.0,0.19238707]
[1735232302119,0.05257477,96659.0,96654.0,0.19238707]
[1735232302318,0.05457477,96659.0,96654.0,0.19238707]
[1735232302521,0.0058885,96658.0,96654.0,0.19238707]
[1735232303332,0.002,96659.0,96657.0,0.206917]
[1735232303750,0.002,96659.0,96658.0,0.00103447]
[1735232304829,6.385e-05,96664.0,96659.0,0.413824]
[1735232305231,6.385e-05,96664.0,96659.0,0.206912]
[1735232305439,6.385e-05,96664.0,96657.0,0.01047627]
[1735232305844,6.385e-05,96664.0,96657.0,0.206917]
[1735232306269,6.385e-05,96664.0,96662.0,0.206905]
[1735232306270,0.00106385,96664.0,96662.0,0.206905]
[1735232306678,6.385e-05,96664.0,96658.0,0.206915]
[1735232307243,6.385e-05,96664.0,96657.0,0.002]
[1735232307444,0.00106385,96664.0,96657.0,0.002]
[1735232308755,6.385e-05,96664.0,96659.0,0.206912]
[1735232308962,0.00106385,96664.0,96659.0,0.206912]
[1735232309159,0.00106385,96664.0,96661.0,0.413816]
[1735232309361,6.385e-05,96664.0,96661.0,0.413816]
[1735232309810,0.00106385,96664.0,96661.0,0.413816]
[1735232310198,6.385e-05,96664.0,96661.0,0.413816]
[1735232310604,0.00106385,96664.0,96661.0,0.206908]
[1735232312058,0.00106385,96664.0,96661.0,0.208908]
[1735232312217,6.385e-05,96664.0,96661.0,0.208908]
[1735232313466,6.385e-05,96664.0,96661.0,0.209908]
[1735232313869,6.385e-05,96664.0,96661.0,0.417816]
[1735232314074,6.385e-05,96664.0,96663.0,0.206904]
[1735232315165,6.385e-05,96664.0,96663.0,0.207904]
[1735232315379,6.385e-05,96664.0,96663.0,0.31289032]
[1735232315585,6.385e-05,96664.0,96663.0,0.38409032]
[1735232315813,6.385e-05,96664.0,96663.0,0.38309032]
[1735232316010,6.385e-05,96664.0,96663.0,0.48707664]
[1735232316344,6.385e-05,96664.0,96663.0,0.48807664]
[1735232316553,6.385e-05,96664.0,96663.0,0.48707664]
[1735232316908,6.385e-05,96664.0,96663.0,0.38309032]
[1735232317120,6.385e-05,96664.0,96663.0,0.38409032]
[1735232317328,6.385e-05,96664.0,96663.0,0.257104]
[1735232317542,8.5e-07,96664.0,96663.0,0.58809032]
[1735232317737,0.01532769,96701.0,96673.0,0.379882]
[1735232317942,0.01532769,96701.0,96679.0,0.20687]
[1735232317943,0.0001548,96680.0,96679.0,0.20687]
[1735232318813,0.0001548,96680.0,96675.0,0.282878]
[1735232318814,0.01532769,96701.0,96675.0,0.076]
[1735232319018,0.01447908,96694.0,96686.0,0.206854]
[1735232319441,0.01447908,96694.0,96684.0,0.33077733]
[1735232320631,0.01447908,96694.0,96688.0,0.206849]
[1735232320858,0.01447908,96694.0,96684.0,0.3414896]
[1735232321224,0.01847908,96694.0,96684.0,0.3414896]
[1735232321637,0.01847908,96694.0,96684.0,0.01071227]
[1735232321835,0.15771025,96693.0,96675.0,0.09243204]
[1735232322259,0.00492393,96693.0,96682.0,0.206862]
[1735232322490,0.00492393,96693.0,96681.0,0.0786]
[1735232322789,0.01647908,96694.0,96681.0,0.0786]
[1735232323352,0.01647908,96694.0,96672.0,0.206883]
[1735232323353,0.1,96681.0,96669.0,0.09243204]
[1735232323558,0.306889,96670.0,96669.0,0.09243204]
[1735232323822,0.41087532,96670.0,96669.0,0.09243204]
[1735232323991,0.206896,96667.0,96664.0,0.17894417]
[1735232324209,0.2069,96665.0,96664.0,0.17894417]
[1735232324397,0.31088632,96665.0,96664.0,0.17894417]
[1735232324599,0.31088632,96665.0,96633.0,0.0786]
[1735232324600,0.206917,96657.0,96633.0,0.0786]
[1735232324842,0.31090332,96657.0,96633.0,0.0786]
[1735232325364,0.31583475,96657.0,96633.0,0.0786]
[1735232325776,0.31583475,96657.0,96635.0,0.01068459]
[1735232325952,0.31783475,96657.0,96656.0,0.0002404]
[1735232327181,0.31683475,96657.0,96656.0,0.0002404]
[1735232327383,0.38989973,96657.0,96656.0,0.0002404]
[1735232327591,0.39089973,96657.0,96656.0,0.0002404]
[1735232327787,0.00793143,96657.0,96656.0,0.0002404]
[1735232328026,0.001,96657.0,96656.0,0.0002404]
[1735232328212,0.002,96657.0,96656.0,0.0002404]
[1735232328414,0.001,96657.0,96656.0,0.0002404]
[1735232328606,0.002,96657.0,96656.0,0.0002404]
[1735232329094,0.001,96657.0,96647.0,0.206936]
[1735232329210,0.001,96657.0,96651.0,0.00023505]
[1735232329415,0.206903,96664.0,96651.0,0.00023505]
[1735232329416,0.206903,96664.0,96651.0,0.01089506]
[1735232329617,0.206903,96664.0,96651.0,0.00023505]
[1735232330065,0.206893,96669.0,96651.0,0.00023505]
[1735232330276,0.24827886,96669.0,96651.0,0.00023505]
[1735232330414,0.001,96657.0,96651.0,0.00023505]
[1735232330635,0.001,96657.0,96647.0,0.20517105]
[1735232330860,0.002,96657.0,96651.0,0.001]
[1735232331348,0.001,96657.0,96651.0,0.001]
[1735232331731,0.001,96657.0,96647.0,0.2156766]
[1735232332643,0.206901,96665.0,96647.0,0.2156766]
[1735232332807,0.001,96657.0,96647.0,0.2156766]
[1735232333188,0.004,96657.0,96647.0,0.2156766]
[1735232333410,0.001,96657.0,96651.0,0.206928]
[1735232333614,0.004,96657.0,96653.0,0.206925]
[1735232334035,0.004,96657.0,96652.0,0.1222]
[1735232334271,0.004,96657.0,96652.0,0.0763]
[1735232334461,0.001,96657.0,96652.0,0.0763]
[1735232335073,0.001,96657.0,96643.0,0.03105525]
[1735232335284,0.001,96657.0,96641.0,0.15]
[1735232335489,0.00215424,96665.0,96641.0,0.15]
[1735232335490,0.00015424,96665.0,96641.0,0.15]
[1735232335729,0.001,96657.0,96647.0,0.206937]
[1735232335935,0.001,96657.0,96651.0,0.206928]
[1735232336176,0.00015424,96665.0,96651.0,0.206928]
[1735232336345,0.002,96657.0,96651.0,0.206928]
[1735232336578,0.00015424,96665.0,96651.0,0.206928]
[1735232336981,0.001,96657.0,96651.0,0.206928]
[1735232337345,0.003,96657.0,96651.0,0.206928]
[1735232337753,0.002,96657.0,96651.0,0.206928]
[1735232338261,0.00415424,96665.0,96651.0,0.206928]
[1735232338592,0.00215424,96665.0,96651.0,0.206928]
[1735232338944,0.001,96657.0,96651.0,0.206928]
[1735232339325,0.00215424,96665.0,96651.0,0.206928]
[1735232339536,0.001,96657.0,96651.0,0.206928]
[1735232340034,0.001,96657.0,96651.0,0.21781489]
[1735232340827,0.00115424,96665.0,96651.0,0.21781489]
[1735232341065,0.00015424,96665.0,96651.0,0.21781489]
[1735232341282,0.001,96657.0,96651.0,0.01088689]
[1735232341522,0.001,96657.0,96651.0,0.0001712]
[1735232342512,0.206904,96663.0,96651.0,0.0001712]
[1735232343550,0.001,96657.0,96651.0,0.0001712]
[1735232343775,0.206904,96663.0,96651.0,0.0001712]
[1735232344153,0.208904,96663.0,96651.0,0.0001712]
[1735232344351,0.206908,96661.0,96651.0,0.0001712]
[1735232344552,0.208904,96663.0,96651.0,0.0001712]
[1735232345001,0.003,96663.0,96651.0,0.0001712]
[1735232345745,0.001,96657.0,96651.0,0.0001712]
[1735232346651,0.206904,96663.0,96651.0,0.0001712]
[1735232346890,0.001,96657.0,96651.0,0.0001712]
[1735232348370,0.22771,96656.0,96651.0,0.0001712]
[1735232348772,0.22771,96656.0,96651.0,0.0011712]
[1735232349045,0.22771,96656.0,96651.0,0.0021712]
[1735232349299,0.206923,96654.0,96651.0,0.0011712]
[1735232349516,0.41091332,96652.0,96651.0,0.0021712]
[1735232349703,0.51117514,96652.0,96651.0,0.0011712]
[1735232350097,0.51117514,96652.0,96651.0,0.0021712]
[1735232350297,0.51117514,96652.0,96651.0,0.0011712]
[1735232350859,0.51817514,96652.0,96651.0,0.0021712]
[1735232351149,0.61077061,96652.0,96651.0,0.0011712]
[1735232352045,0.61077061,96652.0,96651.0,0.0021712]
[1735232352046,0.51817514,96652.0,96651.0,0.0021712]
[1735232352296,0.76817514,96652.0,96651.0,0.0021712]
[1735232352479,0.83127514,96652.0,96651.0,0.0021712]
[1735232352699,0.83127514,96652.0,96651.0,0.0011712]
[1735232352825,1.17379871,96652.0,96651.0,0.0011712]
[1735232353047,0.1,96640.0,96630.0,0.000171]
[1735232353252,0.10398632,96639.0,96630.0,0.12409133]
[1735232353683,0.10398632,96639.0,96631.0,0.0760712]
[1735232353969,0.10398632,96639.0,96630.0,0.01916253]
[1735232354376,0.10398632,96639.0,96624.0,0.01067997]
[1735232354377,0.206957,96638.0,96624.0,0.01067997]
[1735232354616,0.206957,96638.0,96620.0,0.33091433]
[1735232355021,0.206957,96638.0,96620.0,0.206994]
[1735232355222,0.206957,96638.0,96631.0,0.001]
[1735232355614,0.206957,96638.0,96620.0,0.01039819]
[1735232355814,0.05218963,96637.0,96620.0,0.001]
[1735232356043,0.214957,96638.0,96620.0,0.001]
[1735232356251,0.011,96638.0,96621.0,0.206994]
[1735232356463,0.019,96638.0,96631.0,0.001]
[1735232356672,0.019,96638.0,96632.0,0.20697]
[1735232356888,0.003,96638.0,96633.0,0.206968]
[1735232357116,0.003,96638.0,96635.0,0.413928]
[1735232357316,0.003,96638.0,96636.0,0.25502094]
[1735232357526,8.56e-05,96664.0,96640.0,0.15]
[1735232357729,8.56e-05,96664.0,96659.0,0.206912]
[1735232358551,8.56e-05,96664.0,96660.0,0.20691]
[1735232358781,0.0080856,96663.0,96662.0,0.206906]
[1735232359104,8.56e-05,96663.0,96661.0,0.0759]
[1735232359303,0.0050856,96663.0,96662.0,0.206906]
[1735232359533,0.0020856,96663.0,96661.0,0.0759]
[1735232359948,0.0110856,96663.0,96661.0,0.0759]
[1735232360619,0.0090856,96663.0,96662.0,0.206906]
[1735232361068,0.0020856,96663.0,96662.0,0.206906]
[1735232361485,0.0050856,96663.0,96661.0,0.08647802]
[1735232361696,0.0070856,96663.0,96661.0,0.08647802]
[1735232361913,0.0070856,96663.0,96662.0,0.206906]
[1735232362114,0.0070856,96663.0,96661.0,0.08647802]
[1735232362341,0.0050856,96663.0,96661.0,0.08647802]
[1735232362543,0.0110856,96663.0,96661.0,0.08647802]
[1735232362743,0.0020856,96663.0,96661.0,0.08647802]
[1735232363188,0.0060856,96663.0,96661.0,0.08647802]
[1735232363781,0.0040856,96663.0,96661.0,0.08547802]
[1735232364187,0.0060856,96663.0,96661.0,0.08547802]
[1735232364410,0.0020856,96663.0,96661.0,0.08547802]
[1735232364640,0.0060856,96663.0,96661.0,0.08547802]
[1735232366509,0.0060856,96663.0,96662.0,0.206906]
[1735232367348,8.56e-05,96663.0,96662.0,0.206906]
[1735232367554,0.0010856,96663.0,96662.0,0.206906]
[1735232368235,0.0020856,96663.0,96662.0,0.206906]
[1735232368456,0.0030856,96663.0,96662.0,0.206906]
[1735232368912,0.0020856,96663.0,96662.0,0.206906]
[1735232369170,0.0040856,96663.0,96662.0,0.206906]
[1735232369391,0.0020856,96663.0,96662.0,0.206906]
[1735232370611,0.0030856,96663.0,96662.0,0.206906]
[1735232372082,0.0030856,96663.0,96661.0,0.10614907]
[1735232372500,0.0030856,96663.0,96662.0,0.206906]
[1735232373224,0.0030856,96663.0,96662.0,0.256306]
[1735232374220,8.56e-05,96663.0,96662.0,0.256306]
[1735232374458,0.0010856,96663.0,96662.0,0.256306]
[1735232374695,8.56e-05,96663.0,96662.0,0.256306]
[1735232375019,8.56e-05,96663.0,96662.0,0.258306]
[1735232376304,8.56e-05,96663.0,96662.0,0.001]
[1735232376504,8.56e-05,96663.0,96662.0,0.002]
[1735232377174,8.56e-05,96663.0,96661.0,0.03124907]
[1735232377379,8.56e-05,96663.0,96662.0,0.001]
[1735232377641,0.18567192,96663.0,96662.0,0.001]
[1735232377848,0.24565156,96663.0,96662.0,0.001]
[1735232378011,0.1,96657.0,96641.0,0.092261]
[1735232378241,0.206949,96642.0,96641.0,0.092261]
[1735232379013,0.10398632,96642.0,96631.0,0.0923937]
[1735232379232,0.206966,96634.0,96631.0,0.0923937]
[1735232379966,0.11438495,96641.0,96631.0,0.0923937]
[1735232379967,0.206963,96636.0,96631.0,0.0923937]
[1735232380443,0.206963,96636.0,96631.0,0.002]
[1735232380668,0.20705338,96636.0,96631.0,0.002]
[1735232380919,0.20705338,96636.0,96630.0,0.01071001]
[1735232381172,0.206966,96634.0,96631.0,0.004]
[1735232381428,0.51791832,96634.0,96631.0,0.001]
[1735232381664,0.20697,96632.0,96631.0,0.004]
[1735232381896,0.39571104,96632.0,96631.0,0.001]
[1735232382612,0.39571104,96632.0,96630.0,0.0031712]
[1735232382841,0.10398632,96631.0,96630.0,0.0041712]
[1735232383401,0.27618632,96631.0,96630.0,0.0001712]
[1735232383600,0.31164826,96631.0,96630.0,0.0001712]
[1735232383853,0.6216279,96631.0,96630.0,0.0001712]
[1735232383977,0.1,96623.0,96586.0,0.00508039]
[1735232384195,0.207042,96599.0,96585.0,0.08784925]
[1735232384393,0.10398632,96620.0,96589.0,0.12392033]
[1735232384688,0.31098232,96620.0,96590.0,0.20706]
[1735232384888,0.207015,96612.0,96590.0,0.20706]
[1735232385140,0.10398632,96611.0,96590.0,0.20706]
[1735232385341,0.10398632,96611.0,96590.0,0.00051523]
[1735232385342,0.001,96599.0,96590.0,0.00051523]
[1735232385547,0.001,96599.0,96590.0,0.20757523]
[1735232386689,0.207018,96610.0,96590.0,0.20757523]
[1735232386956,0.12612635,96609.0,96590.0,0.20857523]
[1735232387161,0.001,96599.0,96590.0,0.20757523]
[1735232387521,0.002,96599.0,96590.0,0.00051523]
[1735232387721,0.207022,96608.0,96590.0,0.00051523]
[1735232388131,0.207022,96608.0,96590.0,0.00151523]
[1735232388350,0.06293663,96607.0,96590.0,0.00051523]
[1735232388556,0.207026,96606.0,96590.0,0.00051523]
[1735232388761,0.001,96599.0,96590.0,0.00051523]
[1735232389314,0.207058,96591.0,96590.0,0.00051523]
[1735232389525,0.31104432,96591.0,96590.0,0.00051523]
[1735232389726,0.38355775,96591.0,96590.0,0.00051523]
[1735232390195,0.38355775,96591.0,96590.0,0.00151523]
[1735232390833,0.39255775,96591.0,96590.0,0.00268643]
[1735232391031,0.38855775,96591.0,96590.0,0.00068643]
[1735232391256,0.31604432,96591.0,96590.0,0.00068643]
[1735232392501,0.31104432,96591.0,96590.0,0.00068643]
[1735232392859,0.31604432,96591.0,96590.0,0.00068643]
[1735232393288,0.31104432,96591.0,96590.0,0.00068643]
[1735232393503,0.31504432,96591.0,96590.0,0.00068643]
[1735232394028,0.32404432,96591.0,96590.0,0.00068643]
[1735232394227,0.32004432,96591.0,96590.0,0.00068643]
[1735232394383,0.31104432,96591.0,96572.0,0.207098]
[1735232394583,0.15579645,96590.0,96572.0,0.207098]
[1735232394971,0.207062,96589.0,96572.0,0.207098]
[1735232395171,0.207062,96589.0,96572.0,0.2175776]
[1735232395407,0.10398632,96588.0,96572.0,0.0104796]
[1735232395612,0.10398632,96588.0,96570.0,0.000171]
[1735232395812,0.207076,96583.0,96572.0,0.001]
[1735232396655,0.009,96590.0,96572.0,0.001]
[1735232396864,0.004,96588.0,96578.0,0.1267]
[1735232397323,0.00051386,96591.0,96578.0,0.1267]
[1735232397541,0.009,96589.0,96585.0,0.20707]
[1735232397913,0.00051386,96591.0,96585.0,0.20707]
[1735232398069,0.009,96588.0,96585.0,0.20707]
[1735232398268,0.00051386,96591.0,96585.0,0.20707]
[1735232398773,0.006,96589.0,96585.0,0.20807]
[1735232399002,0.006,96589.0,96585.0,0.20707]
[1735232399175,0.006,96589.0,96579.0,0.207084]
[1735232400144,0.006,96589.0,96586.0,0.02078712]
[1735232400315,0.006,96589.0,96585.0,0.001]
[1735232400316,0.005,96588.0,96585.0,0.001]
[1735232400528,0.002,96589.0,96573.0,0.15]
[1735232400725,0.002,96589.0,96579.0,0.12392033]
[1735232400976,0.008,96589.0,96580.0,0.207082]
[1735232401100,0.00051386,96591.0,96580.0,0.207082]
[1735232401880,0.005,96588.0,96586.0,0.207069]
[1735232402009,0.00051386,96591.0,96586.0,0.207069]
[1735232402357,0.00051386,96591.0,96584.0,0.207072]
[1735232402768,0.00051386,96591.0,96580.0,0.207082]
[1735232402971,0.00051386,96591.0,96580.0,0.414164]
[1735232403278,0.002,96588.0,96580.0,0.414164]
[1735232403487,0.002,96588.0,96580.0,0.208082]
[1735232403689,0.00751386,96591.0,96580.0,0.001]
[1735232403915,0.02145619,96590.0,96580.0,0.01078436]
[1735232404128,0.02145619,96590.0,96580.0,0.001]
[1735232404331,0.00751386,96591.0,96580.0,0.001]
[1735232404546,0.20706,96590.0,96579.0,0.0001714]
[1735232404782,0.004,96588.0,96579.0,0.0001714]
[1735232404993,0.207072,96585.0,96579.0,0.0001714]
[1735232405200,0.207082,96580.0,96579.0,0.0001714]
[1735232405410,0.31106832,96580.0,96579.0,0.0001714]
[1735232405609,0.41106832,96580.0,96579.0,0.0001714]
[1735232407294,0.43406832,96580.0,96579.0,0.0001714]
[1735232407475,0.50926832,96580.0,96579.0,0.0001714]